fUSD/lending_fUSD_20241224
["ID","MTS","AMOUNT","RATE_DAILY","PERIOD"]
[346509966,1735017059893,-500.0,0.00013972,2]
[346509967,1735017059902,-599.85,0.00013972,2]
[346509968,1735017059912,-6644.58,0.00013972,2]
[346509969,1735017059921,-500.0,0.00013972,2]
[346509970,1735017059930,-2084.05,0.00013972,2]
[346509971,1735017059939,-1574.04,0.00013972,2]
[346509972,1735017059948,-500.0,0.00013972,2]
[346509973,1735017059958,-500.0,0.00013972,2]
[346509974,1735017059967,-521.4,0.00013972,2]
[346509975,1735017059977,-500.0,0.00013972,2]
[346509976,1735017059987,-500.0,0.00013972,2]
[346509977,1735017059996,-500.0,0.00013972,2]
[346509978,1735017060005,-1759.16,0.00013972,2]
[346509979,1735017060015,-5396.91,0.00013972,2]
[346509980,1735017060025,-500.0,0.00013972,2]
[346509981,1735017060034,-500.0,0.00013972,2]
[346509982,1735017060044,-500.0,0.00013972,2]
[346509983,1735017060054,-5068.92,0.00013972,2]
[346509984,1735017060237,-519.02419089,0.00013972,2]
[346509985,1735017060249,-2140.51,0.00013972,2]
[346509986,1735017060258,-500.0,0.00013972,2]
[346509987,1735017060268,-1218.27,0.00013972,2]
[346509988,1735017060277,-1094.07,0.00013972,2]
[346509989,1735017060287,-500.0,0.00013972,2]
[346509990,1735017060297,-10243.1,0.00013972,2]
[346509991,1735017060307,-721.28,0.00013972,2]
[346509992,1735017060316,-500.0,0.00013972,2]
[346509993,1735017060325,-5625.96,0.00013972,2]
[346509994,1735017060335,-1216.52,0.00013972,2]
[346509995,1735017060344,-790.49,0.00013972,2]
[346509996,1735017060353,-500.0,0.00013972,2]
[346509997,1735017060362,-500.0,0.00013972,2]
[346509998,1735017060371,-2281.06,0.00013972,2]
[346509999,1735017060380,-506.69,0.00013972,2]
[346510000,1735017060390,-500.0,0.00013972,2]
[346510001,1735017060399,-653.69,0.00013972,2]
[346510002,1735017060409,-500.0,0.00013972,2]
[346510003,1735017060418,-500.0,0.00013972,2]
[346510004,1735017060427,-500.0,0.00013972,2]
[346510005,1735017060437,-1025.3,0.00013972,2]
[346510006,1735017060446,-500.0,0.00013972,2]
[346510007,1735017060456,-3534.91,0.00013972,2]
[346510008,1735017060465,-500.0,0.00013972,2]
[346510009,1735017060476,-1884.7,0.00013972,2]
[346510010,1735017060486,-1009.93,0.00013972,2]
[346510011,1735017060496,-511.05038958,0.00013972,2]
[346510012,1735017060506,-747.18,0.00013972,2]
[346510013,1735017060515,-500.0,0.00013972,2]
[346510014,1735017060524,-1148.68,0.00013972,2]
[346510015,1735017060534,-500.0,0.00013972,2]
[346510016,1735017060544,-1487.41,0.00013972,2]
[346510017,1735017060555,-1157.43,0.00013972,2]
[346510018,1735017060564,-513.75297964,0.00013972,2]
[346510019,1735017060574,-500.0,0.00013972,2]
[346510020,1735017060583,-482.45794243,0.00013972,2]
[346510021,1735017060593,-574.67,0.00013972,2]
[346510022,1735017060602,-279.99118009,0.00013972,2]
[346510023,1735017060611,-508.78499054,0.00013972,2]
[346510024,1735017060621,-520.9,0.00013972,2]
[346510025,1735017060630,-500.0,0.00013972,2]
[346510026,1735017060640,-1366.93,0.00013972,2]
[346510027,1735017060650,-1321.6,0.00013972,2]
[346510028,1735017060659,-500.0,0.00013972,2]
[346510029,1735017060668,-2009.91,0.00013972,2]
[346510030,1735017060678,-3473.97,0.00013972,2]
[346510031,1735017060687,-500.0,0.00013972,2]
[346510032,1735017060697,-1834.74,0.00013972,2]
[346510033,1735017060706,-12237.72,0.00013972,2]
[346510034,1735017060716,-1429.03,0.00013972,2]
[346510035,1735017060726,-500.0,0.00013972,2]
[346510036,1735017060736,-926.41,0.00013972,2]
[346510037,1735017060746,-500.0,0.00013972,2]
[346510038,1735017060755,-3213.22,0.00013972,2]
[346510039,1735017060765,-669.32,0.00013972,2]
[346510040,1735017060775,-500.0,0.00013972,2]
[346510041,1735017060785,-941.42,0.00013972,2]
[346510042,1735017060795,-151.910494,0.00013972,2]
[346510043,1735017060805,-150.0,0.0001403,2]
[346510044,1735017060814,-180.9617382,0.00014036,2]
[346510045,1735017060824,-639366.22849718,0.00014046,2]
[346510046,1735017060833,-3000.0,0.0001405,2]
[346510047,1735017060843,-420.0,0.00014147,2]
[346510048,1735017060853,-150.0,0.00014149,2]
[346510049,1735017060863,-565.0,0.00014149,2]
[346510050,1735017060873,-1899.0,0.00014149,2]
[346510051,1735017060883,-3771.0,0.00014149,2]
[346510052,1735017060892,-818.0,0.00014149,2]
[346510053,1735017060901,-926.0,0.00014149,2]
[346510054,1735017060911,-1256.0,0.00014149,2]
[346510055,1735017060920,-536.0,0.00014149,2]
[346510056,1735017060930,-3683.0,0.00014149,2]
[346510057,1735017060939,-1170.0,0.00014149,2]
[346510058,1735017060949,-153.973,0.00014149,2]
[346510059,1735017060958,-3888.0,0.00014149,2]
[346510060,1735017060968,-9594.0,0.00014149,2]
[346510061,1735017060978,-1101.0,0.00014149,2]
[346510062,1735017060989,-1000.0,0.00014156,2]
[346510063,1735017060999,-202.38,0.00014198,2]
[346510064,1735017061009,-171.359,0.00014216,2]
[346510065,1735017061018,-359.12,0.00014229,2]
[346510066,1735017061029,-500.0,0.00014238,2]
[346510067,1735017061038,-582.82802442,0.00014246,2]
[346510068,1735017061047,-503.72855662,0.00014246,2]
[346510069,1735017061057,-501.12944428,0.00014246,2]
[346510070,1735017061066,-500.0,0.00014246,2]
[346510071,1735017061076,-500.0,0.00014246,2]
[346510072,1735017061085,-500.0,0.00014246,2]
[346510073,1735017061094,-352.40099067,0.00014246,2]
[346510074,1735017061104,-500.0,0.00014246,2]
[346510075,1735017061112,-531.11210084,0.00014246,2]
[346510076,1735017061122,-500.0,0.00014246,2]
[346510077,1735017061131,-557.785434,0.00014246,2]
[346510078,1735017061140,-500.0,0.00014246,2]
[346510079,1735017061150,-664.615719,0.00014246,2]
[346510080,1735017061159,-500.0,0.00014246,2]
[346510081,1735017061168,-500.0,0.00014246,2]
[346510082,1735017061177,-500.0,0.00014246,2]
[346510083,1735017061187,-511.41590417,0.00014246,2]
[346510084,1735017061196,-500.0,0.00014246,2]
[346510085,1735017061205,-438.83584071,0.00014246,2]
[346510086,1735017061215,-500.0,0.00014246,2]
[346510087,1735017061225,-281.81933961,0.00014246,2]
[346510088,1735017061235,-500.0,0.00014246,2]
[346510089,1735017061244,-500.0,0.00014246,2]
[346510090,1735017061254,-500.0,0.00014246,2]
[346510091,1735017061263,-500.0,0.00014246,2]
[346510092,1735017061272,-404.8516007,0.00014246,2]
[346510093,1735017061282,-500.0,0.00014246,2]
[346510094,1735017061291,-500.0,0.00014246,2]
[346510095,1735017061300,-500.0,0.00014246,2]
[346510096,1735017061310,-500.0,0.00014246,2]
[346510097,1735017061319,-500.0,0.00014246,2]
[346510098,1735017061328,-500.0,0.00014246,2]
[346510099,1735017061337,-500.0,0.00014246,2]
[346510100,1735017061346,-500.0,0.00014246,2]
[346510101,1735017061356,-656.66,0.00014246,2]
[346510102,1735017061365,-500.0,0.00014246,2]
[346510103,1735017061375,-500.0,0.00014246,2]
[346510104,1735017061385,-547.42,0.00014246,2]
[346510105,1735017061394,-500.0,0.00014246,2]
[346510106,1735017061403,-500.0,0.00014246,2]
[346510107,1735017061412,-500.0,0.00014246,2]
[346510108,1735017061421,-500.0,0.00014246,2]
[346510109,1735017061430,-178.64011262,0.00014246,2]
[346510110,1735017061439,-500.0,0.00014246,2]
[346510111,1735017061449,-500.0,0.00014246,2]
[346510112,1735017061458,-500.0,0.00014246,2]
[346510113,1735017061468,-500.0,0.00014246,2]
[346510114,1735017061478,-500.0,0.00014246,2]
[346510115,1735017061488,-500.0,0.00014246,2]
[346510116,1735017061499,-500.0,0.00014246,2]
[346510117,1735017061508,-728.94,0.00014246,2]
[346510118,1735017061518,-559.81,0.00014246,2]
[346510119,1735017061527,-500.0,0.00014246,2]
[346510120,1735017061537,-500.0,0.00014246,2]
[346510121,1735017061549,-500.0,0.00014246,2]
[346510122,1735017061559,-500.0,0.00014246,2]
[346510123,1735017061568,-500.0,0.00014246,2]
[346510124,1735017061578,-500.0,0.00014246,2]
[346510125,1735017061587,-427.30850077,0.00014246,2]
[346510126,1735017061597,-556.14,0.00014246,2]
[346510127,1735017061606,-500.0,0.00014246,2]
[346510128,1735017061615,-500.0,0.00014246,2]
[346510129,1735017061626,-500.0,0.00014246,2]
[346510130,1735017061636,-500.0,0.00014246,2]
[346510131,1735017061645,-500.0,0.00014246,2]
[346510132,1735017061655,-922.02,0.00014246,2]
[346510133,1735017061665,-500.0,0.00014246,2]
[346510134,1735017061674,-660.38,0.00014246,2]
[346510135,1735017061683,-500.0,0.00014246,2]
[346510136,1735017061692,-500.0,0.00014246,2]
[346510137,1735017061702,-500.0,0.00014246,2]
[346510138,1735017061711,-500.0,0.00014246,2]
[346510139,1735017061722,-719.55,0.00014246,2]
[346510140,1735017061732,-500.0,0.00014246,2]
[346510141,1735017061742,-500.0,0.00014246,2]
[346510142,1735017061751,-500.0,0.00014246,2]
[346510143,1735017061760,-500.0,0.00014246,2]
[346510144,1735017061769,-847.72,0.00014246,2]
[346510145,1735017061778,-500.0,0.00014246,2]
[346510146,1735017061788,-500.0,0.00014246,2]
[346510147,1735017061797,-803.4,0.00014246,2]
[346510148,1735017061807,-500.0,0.00014246,2]
[346510149,1735017061816,-500.0,0.00014246,2]
[346510150,1735017061826,-500.0,0.00014246,2]
[346510151,1735017061836,-274.40919128,0.00014246,2]
[346510152,1735017061845,-500.0,0.00014246,2]
[346510153,1735017061855,-500.0,0.00014246,2]
[346510154,1735017061866,-633.94490765,0.00014246,2]
[346510155,1735017061875,-500.0,0.00014246,2]
[346510156,1735017061884,-500.0,0.00014246,2]
[346510157,1735017061893,-500.0,0.00014246,2]
[346510158,1735017061903,-500.0,0.00014246,2]
[346510159,1735017061912,-500.0,0.00014246,2]
[346510160,1735017061921,-500.0,0.00014246,2]
[346510161,1735017061930,-500.0,0.00014246,2]
[346510162,1735017061940,-500.0,0.00014246,2]
[346510163,1735017061950,-500.0,0.00014246,2]
[346510164,1735017061959,-500.0,0.00014246,2]
[346510165,1735017061969,-500.0,0.00014246,2]
[346510166,1735017061978,-500.0,0.00014246,2]
[346510167,1735017061988,-500.0,0.00014246,2]
[346510168,1735017061998,-500.0,0.00014246,2]
[346510169,1735017062007,-500.0,0.00014246,2]
[346510170,1735017062017,-500.0,0.00014246,2]
[346510171,1735017062027,-500.0,0.00014246,2]
[346510172,1735017062037,-500.0,0.00014246,2]
[346510173,1735017062046,-500.0,0.00014246,2]
[346510174,1735017062055,-639.75,0.00014246,2]
[346510175,1735017062064,-500.0,0.00014246,2]
[346510176,1735017062074,-500.0,0.00014246,2]
[346510177,1735017062083,-500.0,0.00014246,2]
[346510178,1735017062092,-500.0,0.00014246,2]
[346510179,1735017062101,-500.0,0.00014246,2]
[346510180,1735017062111,-500.0,0.00014246,2]
[346510181,1735017062119,-2089.39,0.00014246,2]
[346510182,1735017062128,-739.91,0.00014246,2]
[346510183,1735017062138,-500.0,0.00014246,2]
[346510184,1735017062147,-500.0,0.00014246,2]
[346510185,1735017062156,-500.0,0.00014246,2]
[346510186,1735017062165,-500.0,0.00014246,2]
[346510187,1735017062175,-500.0,0.00014246,2]
[346510188,1735017062186,-500.0,0.00014246,2]
[346510189,1735017062196,-500.0,0.00014246,2]
[346510190,1735017062205,-500.0,0.00014246,2]
[346510191,1735017062214,-500.0,0.00014246,2]
[346510192,1735017062224,-500.0,0.00014246,2]
[346510193,1735017062233,-500.0,0.00014246,2]
[346510194,1735017062243,-500.0,0.00014246,2]
[346510195,1735017062252,-500.0,0.00014246,2]
[346510196,1735017062261,-500.0,0.00014246,2]
[346510197,1735017062270,-605.17,0.00014246,2]
[346510198,1735017062279,-500.0,0.00014246,2]
[346510199,1735017062288,-815.06,0.00014246,2]
[346510200,1735017062298,-500.0,0.00014246,2]
[346510201,1735017062307,-500.0,0.00014246,2]
[346510202,1735017062316,-508.10634461,0.00014246,2]
[346510203,1735017062325,-500.0,0.00014246,2]
[346510204,1735017062338,-500.0,0.00014246,2]
[346510205,1735017062347,-500.0,0.00014246,2]
[346510206,1735017062355,-500.0,0.00014246,2]
[346510207,1735017062365,-699.59,0.00014246,2]
[346510208,1735017062374,-500.0,0.00014246,2]
[346510209,1735017062383,-500.0,0.00014246,2]
[346510210,1735017062392,-500.0,0.00014246,2]
[346510211,1735017062401,-500.0,0.00014246,2]
[346510212,1735017062410,-500.0,0.00014246,2]
[346510213,1735017062419,-201.46,0.00014246,2]
[346510214,1735017062428,-1038.23,0.00014246,2]
[346510215,1735017062438,-500.0,0.00014246,2]
[346510216,1735017062447,-500.0,0.00014246,2]
[346510217,1735017062456,-500.0,0.00014246,2]
[346510218,1735017062465,-500.0,0.00014246,2]
[346510219,1735017062476,-928.44,0.00014246,2]
[346510220,1735017062485,-500.0,0.00014246,2]
[346510221,1735017062495,-500.0,0.00014246,2]
[346510222,1735017062504,-500.0,0.00014246,2]
[346510223,1735017062513,-1245.64,0.00014246,2]
[346510224,1735017062523,-500.0,0.00014246,2]
[346510225,1735017062532,-500.0,0.00014246,2]
[346510226,1735017062542,-500.0,0.00014246,2]
[346510227,1735017062558,-500.0,0.00014246,2]
[346510228,1735017062567,-628.43,0.00014246,2]
[346510229,1735017062576,-500.0,0.00014246,2]
[346510230,1735017062586,-500.0,0.00014246,2]
[346510231,1735017062595,-500.0,0.00014246,2]
[346510232,1735017062605,-500.0,0.00014246,2]
[346510233,1735017062614,-500.0,0.00014246,2]
[346510234,1735017062625,-516.41,0.00014246,2]
[346510235,1735017062636,-500.0,0.00014246,2]
[346510236,1735017062645,-500.0,0.00014246,2]
[346510237,1735017062654,-500.0,0.00014246,2]
[346510238,1735017062720,-500.0,0.00014246,2]
[346510239,1735017062730,-500.0,0.00014246,2]
[346510240,1735017062739,-500.0,0.00014246,2]
[346510241,1735017062749,-500.0,0.00014246,2]
[346510242,1735017062758,-500.0,0.00014246,2]
[346510243,1735017062767,-859.05,0.00014246,2]
[346510244,1735017062776,-500.0,0.00014246,2]
[346510245,1735017062785,-500.0,0.00014246,2]
[346510246,1735017062795,-500.0,0.00014246,2]
[346510247,1735017062804,-500.0,0.00014246,2]
[346510248,1735017062813,-500.0,0.00014246,2]
[346510249,1735017062822,-500.0,0.00014246,2]
[346510250,1735017062831,-500.0,0.00014246,2]
[346510251,1735017062840,-500.0,0.00014246,2]
[346510252,1735017062850,-500.0,0.00014246,2]
[346510253,1735017062859,-500.0,0.00014246,2]
[346510254,1735017062869,-500.0,0.00014246,2]
[346510255,1735017062878,-500.0,0.00014246,2]
[346510256,1735017062888,-500.0,0.00014246,2]
[346510257,1735017062897,-500.0,0.00014246,2]
[346510258,1735017062907,-500.0,0.00014246,2]
[346510259,1735017062915,-500.0,0.00014246,2]
[346510260,1735017062925,-500.0,0.00014246,2]
[346510261,1735017062935,-500.0,0.00014246,2]
[346510262,1735017062944,-369.39435895,0.00014246,2]
[346510263,1735017062954,-500.0,0.00014246,2]
[346510264,1735017062963,-500.0,0.00014246,2]
[346510265,1735017062973,-500.0,0.00014246,2]
[346510266,1735017062982,-500.0,0.00014246,2]
[346510267,1735017062992,-500.0,0.00014246,2]
[346510268,1735017063001,-500.0,0.00014246,2]
[346510269,1735017063010,-500.0,0.00014246,2]
[346510270,1735017063020,-500.0,0.00014246,2]
[346510271,1735017063029,-500.0,0.00014246,2]
[346510272,1735017063038,-500.0,0.00014246,2]
[346510273,1735017063048,-500.0,0.00014246,2]
[346510274,1735017063057,-500.0,0.00014246,2]
[346510275,1735017063066,-589.52,0.00014246,2]
[346510276,1735017063076,-500.0,0.00014246,2]
[346510277,1735017063085,-500.0,0.00014246,2]
[346510278,1735017063094,-500.0,0.00014246,2]
[346510279,1735017063104,-500.0,0.00014246,2]
[346510280,1735017063113,-500.0,0.00014246,2]
[346510281,1735017063123,-500.0,0.00014246,2]
[346510282,1735017063133,-500.0,0.00014246,2]
[346510283,1735017063142,-500.0,0.00014246,2]
[346510284,1735017063151,-500.0,0.00014246,2]
[346510285,1735017063161,-500.0,0.00014246,2]
[346510286,1735017063171,-524.33,0.00014246,2]
[346510287,1735017063181,-500.0,0.00014246,2]
[346510288,1735017063190,-500.0,0.00014246,2]
[346510289,1735017063200,-500.0,0.00014246,2]
[346510290,1735017063211,-500.0,0.00014246,2]
[346510291,1735017063221,-500.0,0.00014246,2]
[346510292,1735017063230,-500.0,0.00014246,2]
[346510293,1735017063239,-500.0,0.00014246,2]
[346510294,1735017063248,-500.0,0.00014246,2]
[346510295,1735017063258,-500.0,0.00014246,2]
[346510296,1735017063267,-500.0,0.00014246,2]
[346510297,1735017063276,-500.0,0.00014246,2]
[346510298,1735017063285,-500.0,0.00014246,2]
[346510299,1735017063295,-500.0,0.00014246,2]
[346510300,1735017063304,-500.0,0.00014246,2]
[346510301,1735017063314,-500.0,0.00014246,2]
[346510302,1735017063323,-500.0,0.00014246,2]
[346510303,1735017063332,-500.0,0.00014246,2]
[346510304,1735017063341,-500.0,0.00014246,2]
[346510305,1735017063351,-500.0,0.00014246,2]
[346510306,1735017063360,-500.0,0.00014246,2]
[346510307,1735017063369,-500.0,0.00014246,2]
[346510308,1735017063378,-958.18,0.00014246,2]
[346510309,1735017063387,-500.0,0.00014246,2]
[346510310,1735017063396,-500.0,0.00014246,2]
[346510311,1735017063406,-500.0,0.00014246,2]
[346510312,1735017063419,-500.0,0.00014246,2]
[346510313,1735017063428,-500.0,0.00014246,2]
[346510314,1735017063438,-500.0,0.00014246,2]
[346510315,1735017063447,-500.0,0.00014246,2]
[346510316,1735017063456,-500.0,0.00014246,2]
[346510317,1735017063466,-500.0,0.00014246,2]
[346510318,1735017063476,-500.0,0.00014246,2]
[346510319,1735017063485,-500.0,0.00014246,2]
[346510320,1735017063495,-537.25,0.00014246,2]
[346510321,1735017063504,-1121.59,0.00014246,2]
[346510322,1735017063514,-500.0,0.00014246,2]
[346510323,1735017063523,-500.0,0.00014246,2]
[346510324,1735017063535,-500.0,0.00014246,2]
[346510325,1735017063545,-500.0,0.00014246,2]
[346510326,1735017063557,-500.0,0.00014246,2]
[346510327,1735017063566,-500.0,0.00014246,2]
[346510328,1735017063576,-500.0,0.00014246,2]
[346510329,1735017063586,-500.0,0.00014246,2]
[346510330,1735017063595,-556.54,0.00014246,2]
[346510331,1735017063605,-500.0,0.00014246,2]
[346510332,1735017063614,-500.0,0.00014246,2]
[346510333,1735017063623,-500.0,0.00014246,2]
[346510334,1735017063635,-500.0,0.00014246,2]
[346510335,1735017063644,-500.0,0.00014246,2]
[346510336,1735017063654,-500.0,0.00014246,2]
[346510337,1735017063664,-500.0,0.00014246,2]
[346510338,1735017063673,-561.23,0.00014246,2]
[346510339,1735017063683,-500.0,0.00014246,2]
[346510340,1735017063692,-500.0,0.00014246,2]
[346510341,1735017063701,-915.52,0.00014246,2]
[346510342,1735017063710,-500.0,0.00014246,2]
[346510343,1735017063721,-500.0,0.00014246,2]
[346510344,1735017063730,-500.0,0.00014246,2]
[346510345,1735017063740,-876.14,0.00014246,2]
[346510346,1735017063749,-500.0,0.00014246,2]
[346510347,1735017063758,-500.0,0.00014246,2]
[346510348,1735017063768,-500.0,0.00014246,2]
[346510349,1735017063778,-500.0,0.00014246,2]
[346510350,1735017063787,-500.0,0.00014246,2]
[346510351,1735017063797,-500.0,0.00014246,2]
[346510352,1735017063807,-500.0,0.00014246,2]
[346510353,1735017063816,-500.0,0.00014246,2]
[346510354,1735017063826,-500.0,0.00014246,2]
[346510355,1735017063836,-500.0,0.00014246,2]
[346510356,1735017063845,-500.0,0.00014246,2]
[346510357,1735017063855,-500.0,0.00014246,2]
[346510358,1735017063864,-500.0,0.00014246,2]
[346510359,1735017063874,-500.0,0.00014246,2]
[346510360,1735017063883,-500.0,0.00014246,2]
[346510361,1735017063893,-1568.06,0.00014246,2]
[346510362,1735017063903,-500.0,0.00014246,2]
[346510363,1735017063914,-790.82,0.00014246,2]
[346510364,1735017063924,-500.0,0.00014246,2]
[346510365,1735017063933,-502.37816975,0.00014246,2]
[346510366,1735017063944,-500.0,0.00014246,2]
[346510367,1735017063954,-500.0,0.00014246,2]
[346510368,1735017063963,-500.0,0.00014246,2]
[346510369,1735017063973,-500.0,0.00014246,2]
[346510370,1735017063982,-500.0,0.00014246,2]
[346510371,1735017063992,-500.0,0.00014246,2]
[346510372,1735017064002,-500.0,0.00014246,2]
[346510373,1735017064011,-824.42,0.00014246,2]
[346510374,1735017064020,-500.0,0.00014246,2]
[346510375,1735017064029,-1098.82,0.00014246,2]
[346510376,1735017064039,-500.0,0.00014246,2]
[346510377,1735017064047,-500.0,0.00014246,2]
[346510378,1735017064057,-500.0,0.00014246,2]
[346510379,1735017064066,-745.24,0.00014246,2]
[346510380,1735017064075,-500.0,0.00014246,2]
[346510381,1735017064084,-500.0,0.00014246,2]
[346510382,1735017064093,-500.0,0.00014246,2]
[346510383,1735017064103,-500.0,0.00014246,2]
[346510384,1735017064112,-500.0,0.00014246,2]
[346510385,1735017064121,-500.0,0.00014246,2]
[346510386,1735017064131,-500.0,0.00014246,2]
[346510387,1735017064140,-1414.48,0.00014246,2]
[346510388,1735017064149,-500.0,0.00014246,2]
[346510389,1735017064158,-500.0,0.00014246,2]
[346510390,1735017064167,-500.0,0.00014246,2]
[346510391,1735017064177,-500.0,0.00014246,2]
[346510392,1735017064186,-1084.53,0.00014246,2]
[346510393,1735017064195,-666.79,0.00014246,2]
[346510394,1735017064205,-500.0,0.00014246,2]
[346510395,1735017064215,-500.0,0.00014246,2]
[346510396,1735017064225,-500.0,0.00014246,2]
[346510397,1735017064234,-1900.45,0.00014246,2]
[346510398,1735017064243,-1378.72,0.00014246,2]
[346510399,1735017064253,-767.26,0.00014246,2]
[346510400,1735017064262,-459.18009648,0.00014246,2]
[346510401,1735017064271,-3033.38,0.00014246,2]
[346510402,1735017064280,-500.0,0.00014246,2]
[346510403,1735017064289,-2055.63,0.00014246,2]
[346510404,1735017064299,-500.0,0.00014246,2]
[346510405,1735017064309,-500.0,0.00014246,2]
[346510406,1735017064318,-1125.23,0.00014246,2]
[346510407,1735017064328,-500.0,0.00014246,2]
[346510408,1735017064337,-500.0,0.00014246,2]
[346510409,1735017064347,-500.0,0.00014246,2]
[346510410,1735017064355,-500.0,0.00014246,2]
[346510411,1735017064365,-500.0,0.00014246,2]
[346510412,1735017064374,-500.0,0.00014246,2]
[346510413,1735017064383,-500.0,0.00014246,2]
[346510414,1735017064392,-500.0,0.00014246,2]
[346510415,1735017064402,-500.0,0.00014246,2]
[346510416,1735017064411,-612.69,0.00014246,2]
[346510417,1735017064420,-500.0,0.00014246,2]
[346510418,1735017064430,-500.0,0.00014246,2]
[346510419,1735017064439,-500.0,0.00014246,2]
[346510420,1735017064448,-500.0,0.00014246,2]
[346510421,1735017064458,-500.0,0.00014246,2]
[346510422,1735017064467,-500.0,0.00014246,2]
[346510423,1735017064477,-500.0,0.00014246,2]
[346510424,1735017064486,-500.0,0.00014246,2]
[346510425,1735017064495,-504.47891486,0.00014246,2]
[346510426,1735017064505,-516.38,0.00014246,2]
[346510427,1735017064515,-500.0,0.00014246,2]
[346510428,1735017064524,-500.0,0.00014246,2]
[346510429,1735017064533,-500.0,0.00014246,2]
[346510430,1735017064543,-500.0,0.00014246,2]
[346510431,1735017064555,-500.0,0.00014246,2]
[346510432,1735017064564,-764.84,0.00014246,2]
[346510433,1735017064573,-500.0,0.00014246,2]
[346510434,1735017064582,-500.0,0.00014246,2]
[346510435,1735017064592,-500.0,0.00014246,2]
[346510436,1735017064601,-500.0,0.00014246,2]
[346510437,1735017064610,-500.0,0.00014246,2]
[346510438,1735017064619,-500.0,0.00014246,2]
[346510439,1735017064629,-500.0,0.00014246,2]
[346510440,1735017064639,-1499.77,0.00014246,2]
[346510441,1735017064648,-500.0,0.00014246,2]
[346510442,1735017064657,-500.0,0.00014246,2]
[346510443,1735017064667,-1598.59,0.00014246,2]
[346510444,1735017064675,-500.0,0.00014246,2]
[346510445,1735017064684,-1242.36,0.00014246,2]
[346510446,1735017064693,-500.0,0.00014246,2]
[346510447,1735017064702,-500.0,0.00014246,2]
[346510448,1735017064711,-500.0,0.00014246,2]
[346510449,1735017064720,-559.25,0.00014246,2]
[346510450,1735017064729,-500.0,0.00014246,2]
[346510451,1735017064739,-500.0,0.00014246,2]
[346510452,1735017064748,-881.82,0.00014246,2]
[346510453,1735017064757,-500.0,0.00014246,2]
[346510454,1735017064766,-736.96,0.00014246,2]
[346510455,1735017064775,-500.0,0.00014246,2]
[346510456,1735017064785,-540.89663237,0.00014246,2]
[346510457,1735017064794,-500.0,0.00014246,2]
[346510458,1735017064803,-500.0,0.00014246,2]
[346510459,1735017064813,-407.17475091,0.00014246,2]
[346510460,1735017064822,-500.0,0.00014246,2]
[346510461,1735017064832,-532.22758693,0.00014246,2]
[346510462,1735017064841,-632.45,0.00014246,2]
[346510463,1735017064850,-500.0,0.00014246,2]
[346510464,1735017064860,-500.0,0.00014246,2]
[346510465,1735017064869,-428.45723102,0.00014246,2]